[Event "Reykjavik Open 2024"]
[Site "Reykjavik"]
[Date "2024.03.16"]
[Round "2.26"]
[White "Chasin, Nico"]
[Black "Mardell, Jimmy"]
[Result "1-0"]
[ECO "D12"]
[WhiteElo "2447"]
[BlackElo "2172"]
[Annotator "TA"]
[PlyCount "93"]
[EventDate "2024.03.12"]
[EventCountry "ISL"]
[SourceTitle "playchess.com"]
[Source "ChessBase"]
[SourceQuality "1"]
[TimeControl "40/5400+30:1800+30"]

{[%evp 15,93,25,34,21,66,58,62,38,35,35,47,0,-4,-30,-8,-55,0,-25,39,39,49,33,66,38,211,4,59,0,31,27,27,0,0,0,0,0,0,0,0,0,12,0,0,0,0,0,0,0,0,-16,73,75,77,73,65,71,177,177,241,233,268,277,827,779,737,799,956,870,1097,917,1093,899,1456,1445,1418,1081,1343,1281,29964,6629]} 1. d4 {[%emt 0:04:19]} d5 {[%emt 0:00:12]} 2. c4 {[%emt 0:00:06]} c6 {[%emt 0:00:05]} 3. Nf3 {[%emt 0:00:22]} Nf6 {[%emt 0:00:09]} 4. e3 {[%emt 0:00:07]} Bf5 {[%emt 0:00:39]} 5. Nc3 {[%emt 0:01:05]} e6 {[%emt 0:00:22]} 6. Nh4 {[%emt 0:00:27]} Be4 {[%emt 0:00:10]} 7. f3 {[%emt 0:00:13]} Bg6 {[%emt 0:00:04]} 8. Qb3 {[%emt 0:00:42]} Qc7 {[%emt 0:01:36]} 9. Bd2 {[%emt 0:00:39]} a5 {[%emt 0:02:03][%cal Oa5a4]} 10. cxd5 {[%emt 0:03:07]} Nxd5 {[%emt 0:00:25]} 11. Rc1 {[%emt 0:04:38] White is slightly better.} Be7 {[%emt 0:05:16]} 12. Nxg6 {[%emt 0:01:13]} hxg6 {[%emt 0:00:03]} 13. Nxd5 {[%emt 0:01:56]} (13. g3 $14) 13... exd5 $11 {[%emt 0:00:04]} 14. f4 {[%emt 0:02:32]} Bh4+ {[%emt 0:10:18]} 15. Kd1 {[%emt 0:00:39]} (15. Ke2 $11) 15... Qe7 {[%emt 0:00:35]} (15... Bd8 $15) 16. Bd3 {[%emt 0:02:12]} O-O {[%emt 0:16:45]} ({Black should play} 16... a4 $11 17. Qa3 Qe6) 17. g3 $14 {[%emt 0:02:22]} Bf6 {[%emt 0:00:04]} 18. h4 $1 {[%emt 0:00:10]} Na6 {[%emt 0:05:42][%cal Oa5a4]} 19. a3 {[%emt 0:02:47][%cal Oh4h5] White is more active.} (19. Bxa5 $2 Qxe3 20. Bb6 Rfe8 $19 (20... Qxg3 $2 21. Kc2 $19) (20... Bxd4 $2 21. Bxd4 Qxd4 22. Qc3 $19)) 19... c5 $2 {[%emt 0:18:06]} (19... Qd7 $14) 20. Bxa6 $2 {[%emt 0:03:27]} (20. Bxa5 $2 c4 (20... Qxe3 $2 21. h5 $19) 21. Bxc4 dxc4 22. Rxc4 Qe4 $19) (20. Qxd5 $18 {Strongly threatening Qf3.} cxd4 21. e4 (21. exd4 Rad8 $15) (21. Bxa5 Qxe3 22. Bxg6 Qxg3 $17) (21. Bxg6 $2 Rad8 $19)) 20... Qe4 {[%emt 0:00:37]} (20... bxa6 $11 21. Rxc5 (21. Bxa5 $2 {too greedy.} Qe4 $19) 21... Rab8 22. Qxd5 Rfd8) 21. Rf1 {[%emt 0:02:15]} ({Better is} 21. Re1 $14 bxa6 22. Rxc5) 21... bxa6 {[%emt 0:01:57]} 22. Rxc5 {[%emt 0:04:48]} Rfd8 {[%emt 0:19:08]} 23. Rf2 {[%emt 0:03:52]} (23. Bxa5 $2 {perishes.} Bxd4 24. Bxd8 Bxc5 $19) ({Much worse is} 23. Rxa5 Rab8 24. Qc2 Qg2 $15) 23... Rab8 {[%emt 0:10:15]} 24. Qc2 {[%emt 0:03:01]} Qh1+ {[%emt 0:00:03]} 25. Be1 {[%emt 0:00:15][%cal Of2h2]} Re8 {[%emt 0:02:04]} 26. Qd3 {[%emt 0:03:04]} a4 {[%emt 0:01:38]} 27. Rc3 {[%emt 0:03:48] Inhibits Rb3.} Re4 {[%emt 0:03:00]} 28. Qf1 {[%emt 0:09:39]} Qxf1 {[%emt 0:00:11]} 29. Rxf1 {[%emt 0:00:01]} Rxb2 {[%emt 0:00:11]} 30. Bd2 {[%emt 0:00:06]} Be7 {[%emt 0:01:05] Inhibits Rc5.} 31. Ke2 {[%emt 0:02:12]} Re6 {[%emt 0:02:06]} 32. Rfc1 {[%emt 0:00:48] [#] Rc8+ would now be deadly.} Rb8 {[%emt 0:00:57]} (32... Kh7 $11 {keeps the balance.}) 33. Rc8+ $16 {[%emt 0:00:40]} Rxc8 {[%emt 0:00:03]} 34. Rxc8+ {[%emt 0:00:02][%mdl 4096] Endgame. KRB-KRB} Kh7 {[%emt 0:00:05]} 35. Bc1 {[%emt 0:00:03]} Rb6 {[%emt 0:01:25]} (35... f6 $16) 36. Rc7 $18 {[%emt 0:00:01]} Bd6 {[%emt 0:00:20]} (36... Bf8 {keeps fighting.}) 37. Rxf7 {[%emt 0:00:04]} Rb3 {[%emt 0:00:47]} 38. Rd7 {[%emt 0:00:03]} Bxa3 {[%emt 0:00:10]} (38... Rb6 39. Kd3 Kh6) 39. Bxa3 {[%emt 0:00:01]} Rxa3 {[%emt 0:00:01]} 40. Rxd5 {[%emt 0:00:08] KR-KR} Ra2+ {[%emt 0:00:44]} 41. Kf3 {[%emt 0:30:02]} a3 {[%emt 0:05:52]} 42. Ra5 {[%emt 0:00:00]} Ra1 {[%emt 0:00:08]} 43. Rxa6 {[%emt 0:00:00]} a2 {[%emt 0:00:03]} 44. Kg4 {[%emt 0:00:00]} Re1 {[%emt 0:01:23]} 45. Rxa2 {[%emt 0:00:00] [#] Hoping for d5.} Rxe3 {[%emt 0:00:03]} 46. Rd2 {[%emt 0:00:00] White wants to mate with d5.} Kg8 {[%emt 0:00:17]} 47. d5 {[%emt 0:00:00] Weighted Error Value: White=0.26 (precise) /Black=0.49.  Loses game:     	---       	Black=1      Missed win:     	White=1     	---        Mistake:       	White=3     	Black=7      Inaccurate:     	White=3     	Black=3      OK:         	White=9     	Black=9      Best:        	White=6     	Black=2      Strong:       	White=1     	---} 1-0

[Event "Reykjavik Open 2024"]
[Site "Reykjavik"]
[Date "2024.03.16"]
[Round "2.27"]
[White "Mannion, Stephen R"]
[Black "Nevednichy, Vladislav"]
[Result "0-1"]
[ECO "B67"]
[WhiteElo "2166"]
[BlackElo "2445"]
[Annotator "TA"]
[PlyCount "120"]
[EventDate "2024.03.12"]
[EventCountry "ISL"]
[SourceTitle "playchess.com"]
[Source "ChessBase"]
[SourceQuality "1"]
[TimeControl "40/5400+30:1800+30"]

{[%evp 19,120,29,36,25,45,21,24,22,0,0,8,12,71,75,79,67,76,65,68,66,79,58,71,70,180,173,155,126,97,0,0,-54,-50,-43,-38,-74,0,-12,-26,-16,-15,-59,-48,-48,-52,-50,-32,-70,-57,-52,-48,-39,-51,-39,-48,-77,-44,-56,-37,-41,-42,-63,-58,-124,-108,-145,-126,-145,-87,-104,-99,-141,-105,-106,-108,-116,-119,-101,-108,-104,-79,-155,-109,-193,-198,-267,-231,-277,-264,-397,-382,-490,-424,-582,-571,-623,-610,-634,-631,-29981,-29982,-29982,-29982]} 1. e4 {[%emt 0:00:03]} c5 {[%emt 0:00:15]} 2. Nf3 {[%emt 0:00:08]} d6 {[%emt 0:00:12]} 3. d4 {[%emt 0:00:07]} cxd4 {[%emt 0:00:02]} 4. Nxd4 {[%emt 0:00:07]} Nf6 {[%emt 0:00:03]} 5. Nc3 {[%emt 0:00:07]} Nc6 {[%emt 0:00:35]} 6. Bg5 {[%emt 0:00:12]} e6 {[%emt 0:00:03]} 7. Qd2 {[%emt 0:00:14]} a6 {[%emt 0:00:08]} 8. O-O-O {[%emt 0:00:13]} Bd7 {[%emt 0:00:01]} 9. Kb1 {[%emt 0:00:31]} Nxd4 {[%emt 0:00:43] B67: Sicilian: Richter-Rauzer: 7...a6 8 0-0-0 Bd7, lines without 9 f4 Be7.} 10. Qxd4 {[%emt 0:00:08]} Be7 {[%emt 0:00:03]} 11. f3 {[%emt 0:02:54]} Qc7 {[%emt 0:01:42]} 12. Qd2 {[%emt 0:04:06] 12.Qd2 scores better than 12.h4.} b5 {[%emt 0:01:43]} 13. g4 {[%emt 0:03:43]} h5 {[%emt 0:00:33]} 14. gxh5 {[%emt 0:11:23]} Nxh5 {[%emt 0:00:37]} 15. h4 {[%emt 0:06:07]} f6 $146 {[%emt 0:07:39]} (15... b4 $11 {remains equal.} 16. Ne2 a5) ({Predecessor:} 15... b4 16. Ne2 a5 17. c3 Rb8 18. cxb4 axb4 19. Nc1 e5 20. Rh2 Be6 21. Bh3 Bxh3 22. Rxh3 {0-1 Moussard,J (2670)-Bacrot,E (2648) FRA-ch 95th Albi 2022 (4.5)}) 16. Be3 $16 {[%emt 0:00:58]} Ng3 {[%emt 0:00:11]} 17. Rg1 {[%emt 0:02:49]} Nxf1 {[%emt 0:00:09]} 18. Rdxf1 {[%emt 0:00:20]} Bf8 {[%emt 0:01:00]} 19. Bf2 {[%emt 0:18:13]} a5 {[%emt 0:32:54]} 20. Ne2 {[%emt 0:03:43]} Kf7 {[%emt 0:03:04]} 21. Nf4 {[%emt 0:00:45]} Rh6 {[%emt 0:04:22]} (21... Rc8 $14) 22. h5 $18 {[%emt 0:12:17]} Rc8 {[%emt 0:03:04]} 23. Rc1 {[%emt 0:01:52]} a4 {[%emt 0:06:38]} 24. Be3 {[%emt 0:10:03]} (24. a3 $16) 24... a3 $1 $11 {[%emt 0:01:42]} 25. b3 {[%emt 0:00:03]} (25. c3 $11) 25... Qc3 $15 {[%emt 0:01:12]} 26. Qxc3 {[%emt 0:01:22]} Rxc3 {[%emt 0:00:04]} 27. Rce1 {[%emt 0:01:44] [#]} Rh7 {[%emt 0:10:08]} (27... d5 $1 $17 {[%cal Oc3e3] ...Rxe3! is the strong threat.} 28. Rgf1 (28. exd5 e5 $17) 28... dxe4 29. fxe4 Rc8) 28. Rh1 {[%emt 0:06:24]} d5 {[%emt 0:10:54]} 29. exd5 {[%emt 0:02:13]} e5 {[%emt 0:00:03]} 30. Nd3 {[%emt 0:03:58]} Bf5 {[%emt 0:00:21]} 31. Bd2 {[%emt 0:04:06]} Rc8 {[%emt 0:00:18]} 32. Rh4 {[%emt 0:01:12]} Bd6 {[%emt 0:03:10]} 33. Bb4 {[%emt 0:00:21]} Bxd3 {[%emt 0:01:14]} 34. Bxd6 {[%emt 0:00:32]} (34. cxd3 Bxb4 35. Rxb4 Rc5 $19 (35... Rxh5 36. Rxb5 Rh2 37. Ra5 $11)) 34... Bxc2+ {[%emt 0:02:04]} 35. Ka1 {[%emt 0:00:02]} Rd8 {[%emt 0:00:23]} 36. Bxa3 {[%emt 0:00:19]} Rxd5 {[%emt 0:00:03]} 37. Rc1 {[%emt 0:00:55]} Bf5 {[%emt 0:01:26]} 38. Bb4 {[%emt 0:03:06]} Bd7 {[%emt 0:02:14]} 39. Kb2 {[%emt 0:01:10]} Ke6 {[%emt 0:00:51]} 40. Rch1 {[%emt 0:01:28]} Bc6 {[%emt 0:03:49]} 41. Kc3 {[%emt 0:04:59]} (41. R1h2 $15) 41... Rd8 $17 {[%emt 0:04:57]} 42. R1h3 {[%emt 0:08:00] [#]} Rdh8 $1 {[%emt 0:02:07]} 43. f4 {[%emt 0:03:13]} exf4 {[%emt 0:00:32]} (43... Kf5 $142 44. Bd6 (44. fxe5 g5 $17) 44... g5 45. fxg5 fxg5) 44. Rxf4 $17 {[%emt 0:00:28]} Rxh5 {[%emt 0:00:12]} 45. Rd3 {[%emt 0:00:24]} Rh3 {[%emt 0:04:51]} 46. Rfd4 {[%emt 0:00:27]} Rxd3+ {[%emt 0:00:24]} 47. Rxd3 {[%emt 0:00:07]} Be4 {[%emt 0:00:46]} 48. Rd6+ {[%emt 0:01:33]} Ke5 {[%emt 0:00:14]} 49. Rb6 {[%emt 0:02:14]} Rc8+ {[%emt 0:00:18]} 50. Kb2 {[%emt 0:00:23]} (50. Kd2 $142) 50... Bc6 {[%emt 0:03:49]} ({Black should try} 50... Rc2+ 51. Ka3 Bc6) 51. Ra6 {[%emt 0:02:40]} (51. Bc3+ $17 {keeps fighting.} Kf5 52. a3) 51... g5 $19 {[%emt 0:01:19]} 52. a4 {[%emt 0:00:33]} (52. Bc3+ $142 Kf5 53. a4) 52... f5 $19 {[%emt 0:02:38]} 53. axb5 {[%emt 0:04:58]} Bxb5 {[%emt 0:00:28]} 54. Rg6 {[%emt 0:00:54]} (54. Ra5 $142 Rb8 55. Ra3) 54... g4 $19 {[%emt 0:00:13]} 55. Bc3+ {[%emt 0:02:29]} Ke4 {[%emt 0:00:52]} 56. b4 {[%emt 0:00:05]} Kf3 {[%emt 0:00:34]} 57. Bd4 {[%emt 0:04:08]} f4 {[%emt 0:00:51]} 58. Rg5 {[%emt 0:00:47]} Rc4 {[%emt 0:05:26]} 59. Rxb5 {[%emt 0:00:37]} Rxd4 {[%emt 0:00:07]} 60. Kc3 {[%emt 0:00:03]} Rd1 {[%emt 0:00:18]} 0-1

[Event "Reykjavik Open 2024"]
[Site "Reykjavik"]
[Date "2024.03.16"]
[Round "2.28"]
[White "Injac, Teodora"]
[Black "Morin, Yves"]
[Result "1-0"]
[ECO "A41"]
[WhiteElo "2434"]
[BlackElo "2166"]
[Annotator "TA"]
[PlyCount "59"]
[EventDate "2024.03.12"]
[EventCountry "ISL"]
[SourceTitle "playchess.com"]
[Source "ChessBase"]
[SourceQuality "1"]
[TimeControl "40/5400+30:1800+30"]

{[%evp 9,59,44,64,64,70,64,132,127,122,116,163,175,172,162,154,120,118,77,193,183,167,183,195,153,164,122,174,64,162,188,205,208,260,242,334,321,314,310,341,274,302,287,298,286,374,378,393,386,355,329,306,299]} 1. Nf3 {[%emt 0:00:51]} d6 {[%emt 0:00:19]} 2. d4 {[%emt 0:00:19]} Bg4 {[%emt 0:00:32]} 3. c4 {[%emt 0:00:32]} Bxf3 {[%emt 0:03:11]} 4. exf3 {[%emt 0:00:08]} g6 {[%emt 0:00:49]} 5. h4 {[%emt 0:01:40][%cal Bh2h4,Bh4h5][%mdl 32]} Nf6 {[%emt 0:03:32]} 6. Nc3 {[%emt 0:01:03]} Bg7 {[%emt 0:00:55]} 7. g4 {[%emt 0:04:06] White is more active.} Nc6 {[%emt 0:19:36]} (7... h5 $14) 8. d5 $16 {[%emt 0:03:55] White is clearly better.} Ne5 {[%emt 0:01:36]} 9. h5 {[%emt 0:02:43] h6 would now be deadly.} Rf8 {[%emt 0:51:35]} (9... O-O $16 10. h6 Bh8) 10. Be2 {[%emt 0:02:58]} c6 {[%emt 0:00:26]} 11. f4 {[%emt 0:05:33]} Ned7 {[%emt 0:00:27]} 12. hxg6 {[%emt 0:25:53]} hxg6 {[%emt 0:00:29]} 13. g5 {[%emt 0:00:57]} Ng8 {[%emt 0:00:21]} (13... Nh5 $16 {is a better defense.}) 14. Be3 {[%emt 0:04:41]} Bxc3+ {[%emt 0:02:20]} 15. bxc3 {[%emt 0:00:04]} c5 {[%emt 0:00:17]} 16. f5 {[%emt 0:07:58]} gxf5 {[%emt 0:01:47]} 17. Rb1 {[%emt 0:02:45]} Qc7 {[%emt 0:01:46]} (17... Qa5 $16 18. Bf4 (18. Rxb7 Nb6 $14) 18... Qxc3+ 19. Bd2 Qa3 20. Rxb7 Nb6) 18. Qc2 {[%emt 0:01:27]} (18. Qd3 $18) 18... O-O-O {[%emt 0:04:47]} (18... e5 $1 $14) 19. Qxf5 $18 {[%emt 0:00:05]} Kb8 {[%emt 0:00:21][%cal Bc8b8,Bb8c7,Bc7b6,Bb6a5][%mdl 32] [#]} 20. Rh7 $1 {[%emt 0:01:34]} Ne5 {[%emt 0:00:21]} 21. f4 {[%emt 0:01:39]} Qd7 {[%emt 0:00:15]} 22. Qxd7 {[%emt 0:01:03]} Nxd7 {[%emt 0:00:11]} 23. Kd2 {[%emt 0:01:15] Black is weak on the light squares} Kc7 {[%emt 0:00:53]} 24. Rbh1 {[%emt 0:06:41]} a6 {[%emt 0:04:15]} 25. Bd3 {[%emt 0:01:12]} Rb8 {[%emt 0:00:31]} 26. a4 {[%emt 0:01:16]} Kb6 {[%emt 0:00:45]} 27. Rg7 {[%emt 0:00:59]} Ka5 {[%emt 0:00:18]} 28. Kc2 {[%emt 0:02:06]} Nb6 {[%emt 0:00:33]} 29. Rhh7 {[%emt 0:05:40]} f6 {[%emt 0:01:06]} 30. g6 {[%emt 0:03:32] Weighted Error Value: White=0.16 (very precise) /Black=0.33.  Mistake:       	White=1     	Black=5      Inaccurate:     	White=1     	Black=2      OK:         	White=11    	Black=7      Best:        	White=1     	---} 1-0

[Event "Reykjavik Open 2024"]
[Site "Reykjavik"]
[Date "2024.03.16"]
[Round "2.29"]
[White "Haldorsen, Benjamin"]
[Black "Ornolfsson, Magnus P."]
[Result "1-0"]
[ECO "C77"]
[WhiteElo "2426"]
[BlackElo "2163"]
[Annotator "TA"]
[PlyCount "99"]
[EventDate "2024.03.12"]
[EventCountry "ISL"]
[SourceTitle "playchess.com"]
[Source "ChessBase"]
[SourceQuality "1"]
[TimeControl "40/5400+30:1800+30"]

{[%evp 12,99,14,21,23,22,18,18,28,24,21,14,31,34,33,29,33,35,16,22,53,43,42,38,47,45,39,42,50,38,50,43,30,0,0,0,-1,-7,-8,0,0,0,0,-7,0,0,0,0,18,0,75,84,81,16,10,16,38,8,0,4,8,0,8,0,0,0,0,-17,17,-28,170,170,164,156,593,592,575,559,29976,29977,29977,6203,29988,29989,29989,29990,29993,29994,29997,29998]} 1. e4 {[%emt 0:01:18]} e5 {[%emt 0:00:05]} 2. Nf3 {[%emt 0:00:41]} Nc6 {[%emt 0:00:05]} 3. Bb5 {[%emt 0:00:11][%cal Bf1b5,Bb5a4,Ba4b3][%mdl 32]} a6 {[%emt 0:00:15]} 4. Ba4 {[%emt 0:00:09]} Nf6 {[%emt 0:00:34]} 5. d3 {[%emt 0:00:30]} b5 {[%emt 0:00:57]} 6. Bb3 {[%emt 0:00:08]} Bc5 {[%emt 0:00:36]} 7. Bg5 {[%emt 0:00:36][%cal Bc1g5,Bg5h4,Bh4g3][%mdl 32]} h6 {[%emt 0:03:24]} 8. Bh4 {[%emt 0:00:27]} d6 {[%emt 0:02:23]} 9. c3 {[%emt 0:00:34]} O-O {[%emt 0:01:45] The position is equal.} 10. O-O {[%emt 0:04:57]} g5 {[%emt 0:08:49]} 11. Bg3 {[%emt 0:01:33]} Bg4 {[%emt 0:04:19][%cal Bc8g4,Bg4h5,Bh5g6][%mdl 32]} 12. h3 {[%emt 0:08:15]} Bh5 {[%emt 0:01:59]} 13. Nbd2 {[%emt 0:03:26][%cal Bb1d2,Bd2f1,Bf1e3][%mdl 32]} Qd7 {[%emt 0:07:50]} 14. Re1 {[%emt 0:05:06]} Rfe8 {[%emt 0:11:56]} 15. Nf1 {[%emt 0:10:22]} Bb6 {[%emt 0:03:46]} 16. Ne3 {[%emt 0:04:35]} Bg6 {[%emt 0:03:28]} 17. a4 {[%emt 0:07:44]} Rab8 {[%emt 0:01:31]} 18. axb5 {[%emt 0:00:56]} axb5 {[%emt 0:00:09]} 19. h4 {[%emt 0:06:28]} g4 {[%emt 0:10:20]} 20. Nh2 {[%emt 0:01:38]} h5 {[%emt 0:00:34]} 21. Kh1 {[%emt 0:00:33]} Bxe3 {[%emt 0:10:38]} 22. fxe3 {[%emt 0:08:52]} Kg7 {[%emt 0:05:28]} 23. Nf1 {[%emt 0:01:19]} Ra8 {[%emt 0:02:19]} 24. Nd2 {[%emt 0:04:02]} Rxa1 {[%emt 0:03:27]} 25. Qxa1 {[%emt 0:00:05]} d5 {[%emt 0:00:25]} 26. exd5 {[%emt 0:03:55]} Nxd5 {[%emt 0:00:09]} 27. e4 {[%emt 0:05:43]} Nf4 {[%emt 0:02:39]} 28. d4 {[%emt 0:00:21]} Nd3 {[%emt 0:05:08]} 29. Re3 {[%emt 0:00:43]} Nc5 {[%emt 0:00:11] Excellent horsemanship.} 30. d5 {[%emt 0:05:51]} Nxb3 {[%emt 0:01:52]} (30... f6 $11 {remains equal.}) 31. Nxb3 $16 {[%emt 0:00:08]} Nb8 {[%emt 0:01:51]} 32. Nc5 {[%emt 0:03:26] Black is weak on the dark squares} (32. Qa5 $1 $16) 32... Qd6 $11 {[%emt 0:00:41]} 33. b4 {[%emt 0:00:45]} Nd7 {[%emt 0:01:00]} 34. Nxd7 {[%emt 0:05:15]} Qxd7 {[%emt 0:00:07]} 35. c4 {[%emt 0:00:04]} bxc4 {[%emt 0:00:49]} 36. Bxe5+ {[%emt 0:00:24]} Kh7 {[%emt 0:00:34]} 37. Qd4 $36 {[%emt 0:01:24][%cal Oh1h2][%mdl 2048] White is pushing.} Qe7 {[%emt 0:01:25][%csl LRb4,LRe5,LRh4]} 38. Bf6 {[%emt 0:00:17]} Qxb4 {[%emt 0:01:02]} 39. e5 {[%emt 0:00:23]} Ra8 {[%emt 0:03:30] ...Qb1+ is the strong threat.} 40. d6 {[%emt 0:02:17] [#]} g3 $2 {[%emt 0:01:50]} 41. Rxg3 $18 {[%emt 0:31:03] Threatens to win with d7.} (41. dxc7 {gets mated.} Qb1+) 41... c5 {[%emt 0:05:04]} 42. Qe3 {[%emt 0:00:00]} Ra1+ $2 {[%emt 0:03:15] Loses the game.} (42... c3 $16 {is tougher.} 43. Qxc3 Qd4) 43. Kh2 {[%emt 0:00:00] And now e6 would win.} Qb1 {[%emt 0:01:26][%csl Ga1][%cal Rb1h1] [#]} 44. Rxg6 $1 {[%emt 0:00:00][%csl Gg6][%cal Re3h6][%mdl 512]} Qh1+ {[%emt 0:01:46]} (44... Qxg6 45. d7) 45. Kg3 {[%emt 0:00:00][%csl Gg6][%cal Re3h6]} fxg6 {[%emt 0:00:25]} 46. d7 {[%emt 0:00:00]} ({And not} 46. Qxc5 Qe1+ 47. Kh2 Qh1+ 48. Kg3 Qe1+ 49. Kh2 Qh1+ 50. Kg3 $11) 46... Ra2 {[%emt 0:02:01] [#]} 47. Qf3 $1 {[%emt 0:00:00] White mates.} Qe1+ {[%emt 0:02:33]} 48. Kh2 {[%emt 0:00:00]} Rd2 {[%emt 0:01:11]} 49. d8=Q {[%emt 0:00:00]} Rxd8 {[%emt 0:00:10]} 50. Qb7+ {[%emt 0:00:00] Weighted Error Value: White=0.07 (flawless) /Black=0.45.  Loses game:     	---       	Black=2      Mistake:       	White=1     	Black=1      Inaccurate:     	White=3     	Black=3      OK:         	White=18    	Black=15     Best:        	White=2     	Black=2      Brilliant:      	White=1     	---} 1-0

[Event "Reykjavik Open 2024"]
[Site "Reykjavik"]
[Date "2024.03.16"]
[Round "2.30"]
[White "Johannsson, Birkir Isak"]
[Black "Salimova, Nurgyul"]
[Result "0-1"]
[ECO "E06"]
[WhiteElo "2161"]
[BlackElo "2426"]
[Annotator "RC"]
[PlyCount "164"]
[EventDate "2024.03.12"]
[EventCountry "ISL"]
[SourceTitle "playchess.com"]
[Source "ChessBase"]
[SourceQuality "1"]
[TimeControl "40/5400+30:1800+30"]

1. Nf3 {[%emt 0:00:05]} d5 {[%emt 0:02:55]} 2. d4 {[%emt 0:00:32]} Nf6 {[%emt 0:00:17]} 3. c4 {[%emt 0:00:14]} e6 {[%emt 0:00:13]} 4. g3 {[%emt 0:00:20]} Be7 {[%emt 0:00:09]} 5. Bg2 {[%emt 0:00:28]} O-O {[%emt 0:00:18]} 6. Nc3 {[%emt 0:00:51]} a5 {[%emt 0:00:32]} 7. O-O {[%emt 0:02:15]} c6 {[%emt 0:04:54]} 8. Re1 {[%emt 0:04:30]} Nbd7 {[%emt 0:07:22]} 9. Nd2 {[%emt 0:05:07]} b5 {[%emt 0:00:50]} 10. cxb5 {[%emt 0:00:42]} cxb5 {[%emt 0:00:06]} 11. Nxb5 {[%emt 0:00:31]} Qb6 {[%emt 0:00:55]} 12. a4 {[%emt 0:20:09]} Ba6 {[%emt 0:02:52]} 13. e4 {[%emt 0:03:33]} dxe4 {[%emt 0:16:11]} 14. Nxe4 {[%emt 0:01:17]} Nxe4 {[%emt 0:02:13]} 15. Bxe4 {[%emt 0:00:31]} Rad8 {[%emt 0:01:58]} 16. Qe2 {[%emt 0:10:36]} Nf6 {[%emt 0:02:19]} 17. Bg2 {[%emt 0:00:45]} Nd5 {[%emt 0:03:51]} 18. Bd2 {[%emt 0:01:11]} Rd7 {[%emt 0:05:39]} 19. Rac1 {[%emt 0:02:23]} Rb8 {[%emt 0:01:58]} 20. Red1 {[%emt 0:02:26]} Bxb5 {[%emt 0:13:29]} 21. axb5 {[%emt 0:00:24]} Qxb5 {[%emt 0:00:40]} 22. Qxb5 {[%emt 0:03:26]} Rxb5 {[%emt 0:00:19]} 23. Bf1 {[%emt 0:00:46]} Rxb2 {[%emt 0:00:51]} 24. Bxa5 {[%emt 0:00:09]} g6 {[%emt 0:01:17]} 25. h4 {[%emt 0:00:23]} Kg7 {[%emt 0:00:41]} 26. Bg2 {[%emt 0:00:34]} Ra2 {[%emt 0:03:39]} 27. Be1 {[%emt 0:03:41]} Bf6 {[%emt 0:04:36]} 28. Bf3 {[%emt 0:02:49]} h5 {[%emt 0:03:40]} 29. Rd3 {[%emt 0:04:06]} Ra4 {[%emt 0:02:54]} 30. Rcd1 {[%emt 0:01:37]} Ne7 {[%emt 0:01:09]} 31. Bc3 {[%emt 0:02:43]} Rc4 {[%emt 0:00:20]} 32. Ba1 {[%emt 0:02:07]} Ra7 {[%emt 0:01:42]} 33. Bb2 {[%emt 0:03:00]} Ra2 {[%emt 0:03:37]} 34. Bc3 {[%emt 0:07:02]} Nf5 {[%emt 0:00:39]} 35. Be4 {[%emt 0:09:32]} Nd6 {[%emt 0:00:30]} 36. Bf3 {[%emt 0:00:08]} Nb5 {[%emt 0:00:54]} 37. Bd2 {[%emt 0:03:55]} Nxd4 {[%emt 0:01:39]} 38. Bg2 {[%emt 0:00:34]} Rac2 {[%emt 0:06:06]} 39. Be3 {[%emt 0:01:25]} Nf5 {[%emt 0:00:20]} 40. Bd2 {[%emt 0:00:52]} Ra4 {[%emt 0:03:00]} 41. Bh3 {[%emt 0:31:34]} Nd4 {[%emt 0:30:33]} 42. Be3 {[%emt 0:00:58]} Nf3+ {[%emt 0:00:36]} 43. Kf1 {[%emt 0:00:50]} Ne5 {[%emt 0:00:39]} 44. Rb3 {[%emt 0:00:25]} Nc4 {[%emt 0:01:07]} 45. Rd7 {[%emt 0:00:00]} Ra6 {[%emt 0:00:00]} 46. Kg1 {[%emt 0:00:00]} Rb2 {[%emt 0:00:00]} 47. Rxb2 {[%emt 0:00:00]} Bxb2 {[%emt 0:00:00]} 48. Bc5 {[%emt 0:00:00]} Rc6 {[%emt 0:00:00]} 49. Ba7 {[%emt 0:00:00]} Bf6 {[%emt 0:00:00]} 50. Bg2 {[%emt 0:00:00]} Ra6 {[%emt 0:00:00]} 51. Bf1 {[%emt 0:00:00]} Ra1 {[%emt 0:00:00]} 52. Kg2 {[%emt 0:00:00]} Ne5 {[%emt 0:00:00]} 53. Rc7 {[%emt 0:00:00]} Rd1 {[%emt 0:00:00]} 54. Bb5 {[%emt 0:00:00]} Rd5 {[%emt 0:00:00]} 55. Rb7 {[%emt 0:00:00]} Be7 {[%emt 0:03:10]} 56. Be8 {[%emt 0:00:00]} Kf8 {[%emt 0:00:57]} 57. Ba4 {[%emt 0:00:00]} Bd6 {[%emt 0:02:44]} 58. Be3 {[%emt 0:00:00]} Ng4 {[%emt 0:00:20]} 59. Ba7 {[%emt 0:00:00]} Bc5 {[%emt 0:00:48]} 60. Bb3 {[%emt 0:00:00]} Rf5 {[%emt 0:00:39]} 61. Bxc5+ {[%emt 0:00:00]} Rxc5 {[%emt 0:00:03]} 62. Bd1 {[%emt 0:00:00]} Ne5 {[%emt 0:00:25]} 63. Rb2 {[%emt 0:00:00]} Kg7 {[%emt 0:00:38]} 64. Ra2 {[%emt 0:00:00]} Rc3 {[%emt 0:00:47]} 65. Be2 {[%emt 0:00:00]} Nc6 {[%emt 0:00:32]} 66. Bf1 {[%emt 0:00:00]} Nd4 {[%emt 0:00:25]} 67. Be2 {[%emt 0:00:00]} e5 {[%emt 0:00:16]} 68. Bf1 {[%emt 0:00:00]} Nf5 {[%emt 0:00:29]} 69. Be2 {[%emt 0:00:00]} e4 {[%emt 0:00:18]} 70. Rd2 {[%emt 0:00:25]} e3 {[%emt 0:00:37]} 71. fxe3 {[%emt 0:00:11]} Rxe3 {[%emt 0:00:55]} 72. Bf3 {[%emt 0:00:12]} Rc3 {[%emt 0:00:24]} 73. Kf2 {[%emt 0:00:19]} Kh6 {[%emt 0:00:19]} 74. Ra2 {[%emt 0:00:24]} f6 {[%emt 0:00:58]} 75. Rb2 {[%emt 0:00:09]} Ra3 {[%emt 0:00:14]} 76. Kg2 {[%emt 0:00:39]} Ne3+ {[%emt 0:01:13]} 77. Kf2 {[%emt 0:00:21]} Nc4 {[%emt 0:00:09]} 78. Rc2 {[%emt 0:00:07]} Ne5 {[%emt 0:00:08]} 79. Be2 {[%emt 0:00:08]} f5 {[%emt 0:01:28]} 80. Rb2 {[%emt 0:00:32]} Nd7 {[%emt 0:00:24]} 81. Bf3 {[%emt 0:01:29]} Nc5 {[%emt 0:00:16]} 82. Rc2 {[%emt 0:00:12]} Nd3+ {[%emt 0:00:06]} 0-1